bitfinex-derivatives/quotes_SOLF0:USTF0_20250731
["timestamp","ask_amount","ask_price","bid_price","bid_amount"]
[1753960923135,8.5738,181.06,181.04,101.14]
[1753960923332,3.05,181.06,181.05,3.22]
[1753960923645,3.05,181.07,181.05,6.24123255]
[1753960923845,3.05,181.07,181.06,3.22]
[1753960926343,8.5735,181.07,181.06,3.22]
[1753960926543,3.05,181.06,181.05,6.24123255]
[1753960926842,3.05,181.06,181.04,104.36]
[1753960927041,3.05,181.05,181.04,3.22]
[1753960927349,3.05,181.05,181.04,101.14]
[1753960927650,8.5741,181.05,181.04,101.14]
[1753960928038,3.05,181.05,181.04,101.14]
[1753960928651,3.05,181.05,181.04,104.36]
[1753960930347,3.05,181.05,181.04,109.8844]
[1753960930950,3.05,181.05,181.04,104.36]
[1753960931746,3.05,181.07,181.05,3.22]
[1753960932746,3.05,181.07,181.05,5.5239]
[1753960932953,3.05,181.07,181.06,3.22]
[1753960934956,3.05,181.11,181.06,3.22]
[1753960935156,3.2,181.1,181.09,3.06]
[1753960935357,3.2,181.1,181.09,104.2]
[1753960936055,3.2,181.1,181.09,101.14]
[1753960938765,3.2,181.09,181.08,101.12]
[1753960939770,8.7231,181.09,181.08,101.12]
[1753960940570,8.7231,181.09,181.07,5.5235]
[1753960940870,3.2,181.08,181.07,104.18]
[1753960944869,3.2,181.08,181.07,109.7035]
[1753960946267,3.2,181.08,181.07,104.18]
[1753960948672,5.5226,181.1,181.07,109.7035]
[1753960948880,3.2,181.09,181.08,1.93261336]
[1753960949375,3.2,181.09,181.08,10.51581336]
[1753960950075,3.2,181.09,181.08,4.99261336]
[1753960950775,3.2,181.09,181.08,3.06]
[1753960950977,3.2,181.09,181.07,111.63601336]
[1753960951976,3.2,181.09,181.07,108.57601336]
[1753960952177,3.2,181.09,181.08,3.06]
[1753960952573,3.2,181.09,181.08,104.16]
[1753960955376,8.7229,181.09,181.08,104.16]
[1753960956576,3.2,181.09,181.08,109.6832]
[1753960957178,3.2,181.09,181.08,104.16]
[1753960957481,8.723,181.09,181.07,7.45601336]
[1753960957679,8.723,181.09,181.08,101.1]
[1753960962980,8.723,181.09,181.07,10.51601336]
[1753960963179,3.2,181.08,181.07,10.51601336]
[1753960963375,3.2,181.08,181.07,111.59601336]
[1753960964082,3.2,181.08,181.07,10.51601336]
[1753960964274,3.2,181.08,181.07,111.59601336]
[1753960964675,3.2,181.08,181.07,10.51601336]
[1753960965079,3.2,181.08,181.07,111.59601336]
[1753960965682,5.523,181.09,181.07,108.53601336]
[1753960969180,5.5232,181.08,181.07,103.01261336]
[1753960970781,8.7732,181.08,181.07,106.12261336]
[1753960971486,3.25,181.08,181.07,111.64611336]
[1753960974087,3.25,181.08,181.07,106.12261336]
[1753960975190,8.7732,181.08,181.07,106.12261336]
[1753960975684,3.25,181.08,181.07,106.12261336]
[1753960977992,3.25,181.08,181.07,104.19]
[1753960978194,3.25,181.08,181.07,106.12261336]
[1753960979489,8.7732,181.08,181.07,106.12261336]
[1753960981293,3.25,181.02,181.01,3.11]
[1753960981591,3.25,181.02,181.01,101.04]
[1753960981894,3.25,181.02,181.01,104.15]
[1753960982591,3.25,181.02,181.01,3.11]
[1753960982896,3.25,181.02,181.01,8.6353]
[1753960983600,3.25,181.05,181.01,3.11]
[1753960983798,3.25,181.05,181.03,1.93261336]
[1753960983998,3.25,181.05,181.04,3.11]
[1753960984398,3.25,181.05,181.04,8.6344]
[1753960984596,3.25,181.05,181.04,3.11]
[1753960986698,3.25,181.05,181.04,8.6344]
[1753960987293,3.25,181.05,181.04,3.11]
[1753960987899,8.7741,181.05,181.04,3.11]
[1753960988103,3.25,181.04,181.03,10.56721336]
[1753960989197,3.25,181.04,181.03,5.04261336]
[1753960990504,3.25,181.04,180.94,25.89344513]
[1753960990697,3.25,181.04,181.01,1.93261336]
[1753960990898,3.25,181.04,181.0,8.6355]
[1753960990899,8.7747,181.04,181.0,8.6355]
[1753960991099,3.25,181.03,181.0,10.56811336]
[1753960991500,3.25,181.03,181.01,3.11]
[1753960991706,3.25,181.03,181.01,8.6353]
[1753960993501,3.25,181.03,181.02,5.04261336]
[1753960995006,3.25,181.03,181.02,1.93261336]
[1753960997405,3.25,181.03,181.02,5.13261336]
[1753960999407,3.25,181.03,181.02,1.93261336]
[1753961004213,5.5247,181.03,181.01,8.7253]
[1753961004518,8.7847,181.03,181.02,1.93261336]
[1753961005812,8.7847,181.03,181.02,5.13261336]
[1753961006513,3.26,181.03,181.02,5.13261336]
[1753961011114,3.26,181.03,181.02,3.2]
[1753961011419,3.26,181.03,181.02,5.13261336]
[1753961011616,3.26,181.07,181.03,3.2]
[1753961011813,3.26,181.07,180.96,11.0533]
[1753961011814,3.26,181.07,181.06,1.93261336]
[1753961012020,5.5239,181.06,181.04,3.2]
[1753961012219,3.26,181.05,181.04,3.2]
[1753961012419,3.26,181.05,181.04,5.13261336]
[1753961014818,3.26,181.09,181.04,5.13261336]
[1753961015024,3.26,181.09,181.06,1.93261336]
[1753961015223,3.26,181.09,181.05,1.93261336]
[1753961015725,3.26,181.06,181.05,1.93261336]
[1753961015923,3.26,181.06,181.02,1.93261336]
[1753961016118,3.26,181.02,180.99,144.13427063]
[1753961016421,3.26,181.0,180.99,147.33427063]
[1753961016615,3.26,181.0,180.99,149.26688399]
[1753961017523,3.26,181.0,180.99,5.13261336]
[1753961018622,3.26,181.0,180.99,3.2]
[1753961020126,3.26,181.0,180.99,5.13261336]
[1753961030828,3.26,181.0,180.91,9.30344513]
[1753961031035,1.93261336,180.98,180.95,1.93261336]
[1753961031230,2.98,180.97,180.89,0.96151189]
[1753961031426,2.98,180.95,180.93,5.13261336]
[1753961032037,2.98,180.95,180.93,1.93261336]
[1753961032238,2.98,180.95,180.94,8.7275]
[1753961032438,2.98,180.95,180.94,5.5275]
[1753961032834,5.5269,180.96,180.93,7.46021336]
[1753961033028,2.98,180.95,180.93,7.46021336]
[1753961033233,2.98,180.95,180.93,10.66021336]
[1753961034034,2.98,180.95,180.94,5.5275]
[1753961034234,2.98,180.95,180.94,8.7275]
[1753961035240,2.98,180.95,180.93,7.46031336]
[1753961035631,2.98,180.95,180.92,5.13261336]
[1753961035841,8.5074,180.95,180.92,10.66051336]
[1753961036137,2.98,180.94,180.92,1.93261336]
[1753961036948,2.98,180.94,180.92,7.46061336]
[1753961037736,2.98,180.94,180.92,10.66061336]
[1753961039144,5.527,180.96,180.93,3.2]
[1753961039346,2.98,180.95,180.94,5.13261336]
[1753961041745,2.98,180.95,180.94,3.2]
[1753961042849,2.98,180.95,180.94,8.7277]
[1753961043044,2.98,180.95,180.9,3.2]
[1753961043246,2.98,180.95,180.91,1.93261336]
[1753961043746,2.98,180.95,180.92,3.2]
[1753961044255,2.98,180.95,180.92,8.728]
[1753961044552,2.98,180.95,180.92,5.528]
[1753961044750,2.98,180.95,180.93,3.2]
[1753961045148,2.98,180.95,180.94,3.2]
[1753961047345,2.98,180.95,180.94,5.5275]
[1753961048450,2.98,180.95,180.91,3.2]
[1753961049646,2.98,180.93,180.91,5.5283]
[1753961050046,2.98,180.93,180.91,8.7283]
[1753961050949,8.5078,180.93,180.91,3.2]
[1753961051246,2.98,180.94,180.85,3.2]
[1753961051547,2.98,180.88,180.87,3.2]
[1753961051745,2.98,180.88,180.86,6.22503073]
[1753961052344,2.98,180.88,180.86,3.2]
[1753961052547,2.98,180.88,180.84,147.27960022]
[1753961053246,2.98,180.88,180.84,4.16213661]
[1753961053447,5.5295,180.88,180.84,4.16213661]
[1753961053752,2.98,180.87,180.85,3.2]
[1753961053947,2.98,180.88,180.86,3.2]
[1753961055253,2.98,180.88,180.86,8.7299]
[1753961060368,3.02503073,180.89,180.84,0.96213661]
[1753961060563,2.95,180.88,180.83,3.49871427]
[1753961060966,3.02503073,180.89,180.83,3.49871427]
[1753961060967,2.95,180.85,180.83,3.49871427]
[1753961061664,2.95,180.84,180.83,3.49871427]
[1753961062669,8.4805,180.84,180.83,3.49871427]
[1753961062870,2.95,180.84,180.83,3.49871427]
[1753961063872,8.4805,180.84,180.83,3.49871427]
[1753961064262,2.95,180.84,180.83,3.49871427]
[1753961065171,8.4805,180.84,180.83,3.49871427]
[1753961065971,2.95,180.84,180.76,2.99]
[1753961066167,2.95,180.81,180.76,2.99]
[1753961066368,2.95,180.81,180.76,5.5327]
[1753961066569,2.95,180.81,180.75,2.99]
[1753961066873,2.95,180.81,180.76,5.533]
[1753961067077,2.95,180.81,180.74,6.01503073]
[1753961067275,2.95,180.81,180.75,2.99]
[1753961068174,2.95,180.81,180.72,2.99]
[1753961068374,2.95,180.81,180.75,3.02503073]
[1753961068572,2.95,180.81,180.76,2.99]
[1753961068770,2.95,180.83,180.8,2.99]
[1753961069076,2.95,180.82,180.8,2.99]
[1753961069278,2.95,180.81,180.79,8.55693073]
[1753961069471,2.95,180.81,180.79,5.5319]
[1753961069873,2.95,180.83,180.8,2.99]
[1753961070074,2.95,180.82,180.8,2.99]
[1753961070276,2.95,180.81,180.79,5.5319]
[1753961070874,2.95,180.81,180.8,2.99]
[1753961072674,2.95,180.84,180.81,2.99]
[1753961072872,3.02503073,180.88,180.81,2.99]
[1753961073070,2.95,180.86,180.81,2.99]
[1753961074277,5.5306,180.84,180.81,5.5313]
[1753961074473,2.95,180.83,180.82,2.99]
[1753961076874,2.95,180.83,180.82,8.5211]
[1753961077077,2.95,180.83,180.82,2.99]
[1753961080077,8.4808,180.83,180.82,2.99]
[1753961080282,2.95,180.83,180.79,2.99]
[1753961080479,2.95,180.83,180.8,2.99]
[1753961080679,8.4814,180.81,180.8,2.99]
[1753961080882,11.0582,180.89,180.77,3.02503073]
[1753961080883,2.95,180.8,180.79,2.99]
[1753961081087,3.02503073,180.85,180.79,2.99]
[1753961081277,2.95,180.81,180.79,2.99]
[1753961081479,8.4815,180.81,180.79,2.99]
[1753961081679,2.95,180.81,180.79,8.522]
[1753961081880,2.95,180.81,180.8,2.99]
[1753961083083,3.02503073,180.9,180.8,2.99]
[1753961083084,2.95,180.83,180.8,2.99]
[1753961083885,2.95,180.82,180.8,2.99]
[1753961084289,2.95,180.82,180.8,8.5217]
[1753961084585,2.95,180.82,180.81,2.99]
[1753961085388,5.5306,180.84,180.81,8.5214]
[1753961085588,3.12,180.83,180.81,2.99]
[1753961086089,8.6509,180.83,180.81,2.99]
[1753961086589,3.12,180.85,180.81,2.99]
[1753961086791,11.0557,180.93,180.83,3.02503073]
[1753961086986,3.12,180.9,180.84,3.0]
[1753961087990,3.12,180.86,180.84,3.0]
[1753961088693,3.12,180.86,180.85,3.0]
[1753961089489,8.6499,180.86,180.85,3.0]
[1753961091096,3.12,180.86,180.85,3.0]
[1753961091293,3.12,180.87,180.85,3.0]
[1753961091599,3.12,180.92,180.86,3.0]
[1753961091892,0.22124,180.94,180.88,3.0]
[1753961092092,3.12,180.89,180.88,3.0]
[1753961092687,0.22124,180.94,180.88,8.5293]
[1753961092688,8.6485,180.91,180.88,8.5293]
[1753961092895,3.12,180.9,180.89,3.0]
[1753961093491,5.5287,180.9,180.89,3.0]
[1753961093988,8.6487,180.9,180.89,3.0]
[1753961097688,3.12,180.89,180.84,3.0]
[1753961100097,3.12,180.86,180.84,3.0]
[1753961100696,3.12,180.85,180.84,5.5305]
[1753961100901,3.12,180.85,180.81,3.02503073]
[1753961101300,3.12,180.85,180.84,3.0]
[1753961103005,8.6502,180.85,180.84,3.0]
[1753961103200,3.12,180.85,180.81,3.0]
[1753961103406,3.12,180.85,180.78,3.02503073]
[1753961103703,8.6511,180.83,180.82,3.0]
[1753961104300,3.12,180.82,180.8,3.0]
[1753961104495,3.12,180.83,180.8,3.0]
[1753961104703,3.12,180.83,180.8,6.02503073]
[1753961105098,3.12,180.83,180.8,11.55663073]
[1753961105298,3.12,180.83,180.8,8.55663073]
[1753961105494,3.12,180.83,180.81,3.0]
[1753961108404,3.02503073,180.87,180.8,8.55663073]
[1753961108606,3.98824358,180.86,180.8,8.5316]
[1753961108802,3.02503073,180.87,180.81,3.0]
[1753961108803,3.12,180.84,180.81,3.0]
[1753961109002,3.12,180.83,180.81,3.0]
[1753961109893,3.12,180.83,180.82,3.0]
[1753961112504,8.6508,180.83,180.82,3.0]
[1753961114306,3.12,180.83,180.82,3.0]
[1753961116307,8.6508,180.83,180.82,3.0]
[1753961120906,8.5707,180.84,180.82,3.0]
[1753961121215,3.04,180.85,180.82,3.0]
[1753961121601,8.5702,180.85,180.83,3.11]
[1753961122005,3.04,180.85,180.83,3.11]
[1753961122205,3.04,180.85,180.84,3.11]
[1753961129409,8.5702,180.85,180.84,3.11]
[1753961130815,3.04,180.85,180.84,3.11]
[1753961131815,8.5702,180.85,180.84,3.11]
[1753961134817,3.04,180.85,180.84,3.11]
[1753961135916,3.04,180.85,180.84,8.6405]
[1753961136116,3.04,180.85,180.84,3.11]
[1753961136807,3.04,180.88,180.84,3.11]
[1753961137011,3.02503073,180.9,180.84,5.5303]
[1753961137212,3.04,180.87,180.85,3.11]
[1753961137914,5.5295,180.88,180.85,3.11]
[1753961138118,3.04,180.86,180.85,3.11]
[1753961138318,3.04,180.86,180.85,8.6402]
[1753961146231,3.04,180.86,180.85,3.11]
[1753961147623,7.20149646,180.86,180.79,3.1]
[1753961147822,7.20149646,180.85,180.79,3.1]
[1753961148022,3.21,180.84,180.79,3.1]
[1753961148216,8.7408,180.84,180.8,5.5316]
[1753961148418,3.99081027,180.83,180.76,3.02503073]
[1753961148624,3.02503073,180.85,180.76,3.02503073]
[1753961148625,7.20081027,180.82,180.76,6.12503073]
[1753961148824,3.21,180.82,180.79,1.938982]
[1753961149126,3.21,180.82,180.81,3.1]
[1753961151318,3.21,180.82,180.81,8.6314]
[1753961152133,8.7406,180.84,180.81,5.5314]
[1753961152320,3.21,180.83,180.82,3.1]
[1753961154636,3.21,180.83,180.82,8.6311]
[1753961158632,3.21,180.83,180.82,3.1]
[1753961159545,8.7408,180.83,180.82,3.1]
[1753961159934,3.21,180.83,180.82,3.1]
[1753961160247,3.21,180.83,180.81,5.5314]
[1753961160438,3.21,180.83,180.81,8.6314]
[1753961160836,3.02960419,180.87,180.81,5.5314]
[1753961161139,3.21,180.82,180.81,5.5314]
[1753961161343,3.21,180.82,180.81,8.6314]
[1753961163437,3.21,180.83,180.82,5.5311]
[1753961163637,3.21,180.85,180.82,3.1]
[1753961164044,3.21,180.84,180.82,8.6309]
[1753961164345,3.21,180.84,180.83,3.1]
[1753961166644,3.21,180.84,180.83,8.6308]
[1753961166845,3.21,180.84,180.83,3.1]
[1753961171649,12.71721447,180.84,180.83,3.1]
[1753961178253,5.5316,180.81,180.8,1.93848656]
[1753961178459,3.16,180.81,180.8,2.99]
[1753961179353,3.16,180.81,180.75,149.32779692]
[1753961179656,3.16,180.79,180.76,2.99]
[1753961180754,8.6922,180.79,180.77,1.93848656]
[1753961180957,8.6922,180.79,180.78,2.99]
[1753961185752,5.5319,180.8,180.77,1.93848656]
[1753961185951,5.5319,180.8,180.78,2.99]
[1753961185952,3.16,180.79,180.78,2.99]
[1753961186458,3.16,180.79,180.78,4.92848656]
[1753961187651,5.5316,180.81,180.78,10.46068656]
[1753961187857,8.6916,180.81,180.8,2.99]
[1753961188760,3.16,180.81,180.8,2.99]
[1753961189554,8.6914,180.81,180.8,2.99]
[1753961193662,3.16,180.81,180.8,2.99]
[1753961194868,8.6914,180.81,180.8,2.99]
[1753961196271,3.16,180.81,180.8,2.99]
[1753961197279,8.6914,180.81,180.8,2.99]
[1753961203578,8.6921,180.8,180.79,2.99]
[1753961204782,3.16,180.8,180.79,2.99]
[1753961206581,8.6618,180.8,180.79,2.99]
[1753961209881,3.13,180.8,180.79,2.99]
[1753961211576,3.13,180.8,180.79,4.92848656]
[1753961212185,3.13,180.8,180.79,2.99]
[1753961214186,8.6618,180.8,180.79,2.99]
[1753961216577,5.5318,180.8,180.78,1.93848656]
[1753961216781,3.13,180.79,180.78,3.18]
[1753961221487,3.13,180.78,180.77,1.93848656]
[1753961221682,3.13,180.78,180.77,5.11848656]
[1753961221887,3.13,180.78,180.74,0.96278877]
[1753961221888,3.13,180.79,180.74,0.96278877]
[1753961222086,3.13,180.79,180.77,1.93848656]
[1753961222286,3.13,180.78,180.75,3.18]
[1753961222491,3.13,180.78,180.76,10.65128656]
[1753961222687,3.13,180.78,180.77,3.18]
[1753961224893,3.13,180.78,180.77,5.11848656]
[1753961226390,3.13,180.78,180.77,3.18]
[1753961226596,3.13,180.78,180.77,5.11848656]
[1753961229696,1.93848656,180.81,180.77,5.11848656]
[1753961229894,3.13,180.81,180.8,3.18]
[1753961230392,12.63767611,180.81,180.8,3.18]
[1753961231796,7.10627611,180.81,180.8,3.18]
[1753961232004,3.13,180.81,180.8,3.18]
[1753961232300,3.13,180.84,180.8,3.18]
[1753961232490,7.10724396,180.83,180.8,3.18]
[1753961232695,7.10724396,180.82,180.81,3.18]
[1753961233201,12.63834396,180.82,180.81,3.18]
[1753961233998,12.63834396,180.82,180.81,5.11848656]
[1753961234594,12.63834396,180.82,180.81,3.18]
[1753961236099,3.13,180.82,180.81,3.18]
[1753961237006,3.13,180.82,180.81,5.11848656]
[1753961237390,8.6611,180.82,180.81,5.11848656]
[1753961238207,8.6611,180.82,180.81,3.18]
[1753961239401,5.5316,180.81,180.79,1.93848656]
[1753961239605,3.04,180.8,180.79,3.02]
[1753961239806,3.04,180.8,180.79,10.49048656]
[1753961240005,3.04,180.81,180.8,3.02]
[1753961240199,3.04,180.81,180.8,4.95848656]
[1753961243506,5.5314,180.81,180.8,1.93848656]
[1753961243703,3.04,180.81,180.8,4.95848656]
[1753961248523,3.04,180.81,180.8,10.49028656]
[1753961249119,3.04,180.83,180.82,3.02]
[1753961249317,3.04,180.83,180.82,4.95848656]
[1753961249921,3.04,180.88,180.83,3.02]
[1753961250118,7.02078592,180.87,180.83,3.02]
[1753961250318,3.04,180.87,180.83,3.02]
[1753961250613,3.04,180.86,180.85,8.55]
[1753961250824,477.51127511,180.94,180.74,0.96278877]
[1753961250825,3.04,180.93,180.86,3.02]
[1753961251017,3.04,180.91,180.86,3.02]
[1753961251322,3.04,180.89,180.81,3.02]
[1753961251510,3.04,180.89,180.88,1.93848656]
[1753961251710,3.04,180.89,180.88,4.95848656]
[1753961256223,8.569,180.89,180.88,3.02]
[1753961256420,4.97848656,180.89,180.86,1.93848656]
[1753961256621,5.5307,180.84,180.81,3.02]
[1753961256817,3.04,180.83,180.81,4.95848656]
[1753961257017,3.04,180.82,180.8,3.02]
[1753961257923,8.5714,180.81,180.8,3.02]
[1753961258324,3.04,180.81,180.8,3.02]
[1753961263324,8.5714,180.81,180.8,3.02]
[1753961263831,3.04,180.81,180.8,3.02]
[1753961265925,3.04,180.81,180.77,3.15]
[1753961266125,6.06971377,180.81,180.75,3.15]
[1753961266325,3.0,180.8,180.75,3.15]
[1753961266732,5.5323,180.79,180.76,5.5328]
[1753961266928,3.0,180.78,180.76,8.6828]
[1753961268130,8.5324,180.78,180.76,3.15]
[1753961268432,3.0,180.77,180.76,3.15]
[1753961270633,5.5326,180.78,180.72,150.15133944]
[1753961270634,3.0,180.76,180.74,5.5335]
[1753961270833,3.02971377,180.81,180.75,3.15]
[1753961271132,3.0,180.77,180.76,3.15]
[1753961271433,3.0,180.77,180.74,3.15]
[1753961271634,3.0,180.77,180.75,3.15]
[1753961273829,5.5324,180.78,180.75,3.15]
[1753961274137,3.0,180.78,180.77,3.15]
[1753961274433,8.5324,180.78,180.77,3.15]
[1753961275234,3.0,180.77,180.75,3.15]
[1753961275437,6.02971377,180.83,180.77,3.15]
[1753961275632,3.0,180.81,180.77,3.15]
[1753961275934,3.0,180.8,180.72,6.17971377]
[1753961276131,5.5326,180.78,180.73,8.6836]
[1753961276334,5.5326,180.78,180.72,3.02971377]
[1753961276335,3.0,180.77,180.74,3.15]
[1753961276536,3.0,180.78,180.72,3.15]
[1753961276735,3.0,180.75,180.73,3.15]
[1753961276930,3.0,180.74,180.73,3.15]
[1753961277737,3.0,180.74,180.73,8.6839]
[1753961277934,3.02971377,180.77,180.61,371.84]
[1753961278136,3.0,180.76,180.72,3.15]
[1753961278536,5.5335,180.75,180.72,5.5342]
[1753961278738,3.0,180.74,180.73,3.15]
[1753961280238,3.0,180.74,180.69,3.02971377]
[1753961280442,3.0,180.74,180.69,3.15]
[1753961280741,3.0,180.73,180.72,8.6842]
[1753961281140,3.0,180.73,180.72,3.15]
[1753961281731,5.5332,180.76,180.72,3.15]
[1753961281732,3.0,180.74,180.72,3.15]
[1753961281939,3.0,180.74,180.72,8.6842]
[1753961282144,3.0,180.74,180.73,3.15]
[1753961284140,3.0,180.74,180.72,5.5342]
[1753961284343,3.0,180.74,180.72,8.6842]
[1753961284742,3.0,180.74,180.72,3.15]
[1753961284937,5.5337,180.74,180.69,3.02971377]
[1753961285242,3.0,180.73,180.71,3.15]
[1753961285436,3.0,180.73,180.68,3.02971377]
[1753961285636,3.0,180.73,180.72,3.15]
[1753961288644,11.0614,180.84,180.72,3.15]
[1753961288645,3.0,180.76,180.72,3.15]
[1753961289242,3.0,180.75,180.72,3.15]
[1753961289442,3.0,180.74,180.72,3.15]
[1753961289635,5.5332,180.76,180.72,8.6842]
[1753961289836,3.0,180.79,180.73,3.15]
[1753961290741,5.5329,180.77,180.73,3.15]
[1753961290941,3.0,180.76,180.73,3.15]
[1753961291442,3.0,180.76,180.75,3.15]
[1753961291844,3.0,180.76,180.73,3.15]
[1753961292243,3.0,180.76,180.74,3.15]
[1753961292543,3.0,180.76,180.73,3.15]
[1753961293145,3.0,180.76,180.73,6.17971377]
[1753961293348,3.02971377,180.85,180.77,3.15]
[1753961293542,3.0,180.83,180.77,3.02971377]
[1753961293737,3.02971377,180.81,180.74,3.02971377]
[1753961293942,3.0,180.78,180.74,3.15]
[1753961294237,3.02971377,180.79,180.74,3.15]
[1753961294443,3.0,180.78,180.73,3.15]
[1753961294745,3.0,180.78,180.71,3.02971377]
[1753961295049,2.98,180.76,180.74,3.15]
[1753961295946,8.5132,180.76,180.74,3.15]
[1753961296146,2.98,180.75,180.74,3.15]
[1753961296540,8.5133,180.75,180.74,3.15]
[1753961298848,2.98,180.75,180.74,3.15]
[1753961301350,8.5133,180.75,180.74,3.15]
[1753961301943,8.5133,180.75,180.71,8.56411377]
[1753961302151,8.5133,180.75,180.67,102.16308186]
[1753961302152,2.98,180.73,180.72,3.15]
[1753961304140,2.98,180.77,180.71,3.15]
[1753961304340,2.98,180.75,180.72,3.15]
[1753961304755,5.5336,180.74,180.73,3.15]
[1753961304953,8.5136,180.74,180.73,3.15]
[1753961307353,3.02971377,180.78,180.72,3.15]
[1753961307354,5.5341,180.73,180.72,3.15]
[1753961307655,8.5141,180.73,180.72,3.15]
[1753961307853,2.98,180.73,180.72,3.15]
[1753961309155,2.98,180.72,180.71,3.15]
[1753961309354,8.5139,180.73,180.71,3.15]
[1753961309855,2.98,180.71,180.7,3.15]
[1753961311851,8.5145,180.71,180.7,3.15]
[1753961312444,2.98,180.71,180.7,3.15]
[1753961313055,2.98,180.71,180.7,5.0909569]
[1753961313658,2.98,180.71,180.66,104.27]
[1753961313857,2.98,180.69,180.67,5.0909569]
[1753961314160,2.98,180.73,180.68,1.9409569]
[1753961314362,2.98,180.72,180.71,3.15]
[1753961314548,2.98,180.72,180.71,5.0909569]
[1753961314751,2.98,180.72,180.71,3.15]
[1753961315248,4.58898063,180.8,180.71,3.15]
[1753961315555,2.98,180.77,180.72,3.15]
[1753961315758,3.98795975,180.76,180.72,3.15]
[1753961315957,2.98,180.74,180.72,3.15]
[1753961317658,2.98,180.74,180.72,6.18253991]
[1753961317957,2.98,180.73,180.71,8.56693991]
[1753961318257,2.98,180.73,180.71,3.03253991]
[1753961318457,2.98,180.73,180.72,3.15]
[1753961319958,5.5334,180.75,180.72,8.6842]
[1753961320157,2.98,180.76,180.74,3.15]
[1753961320553,12.5030275,180.75,180.72,3.03253991]
[1753961320855,2.98,180.73,180.69,3.15]
[1753961321054,5.5342,180.73,180.7,3.15]
[1753961321253,2.98,180.72,180.7,3.15]
[1753961321453,2.98,180.71,180.7,3.15]
[1753961322257,8.5142,180.72,180.7,3.15]
[1753961323459,5.5342,180.72,180.7,3.15]
[1753961323661,8.5142,180.72,180.7,3.15]
[1753961324361,2.98,180.71,180.7,3.15]
[1753961326058,8.5145,180.71,180.7,3.15]
[1753961326261,3.03253991,180.78,180.7,3.15]
[1753961326262,3.07,180.72,180.7,3.15]
[1753961326560,8.6044,180.72,180.7,3.15]
[1753961326763,3.07,180.72,180.7,6.18253991]
[1753961326960,3.07,180.73,180.71,3.2]
[1753961327158,3.07,180.75,180.71,3.2]
[1753961328162,8.6035,180.75,180.72,5.5342]
[1753961328359,3.07,180.74,180.73,3.2]
[1753961330054,3.07,180.76,180.73,3.2]
[1753961330259,7.05778207,180.75,180.73,3.2]
[1753961330562,3.07,180.75,180.73,3.2]
[1753961330959,5.5331,180.76,180.73,5.5339]